fUSD/lending_fUSD_20240222
["ID","MTS","AMOUNT","RATE_DAILY","PERIOD"]
[314823225,1708570241750,-500.0,0.00035616,2]
[314823226,1708570241759,-508.6907212,0.00035616,2]
[314823227,1708570241768,-195.96847305,0.00035616,2]
[314823228,1708570241778,-500.0,0.00035616,2]
[314823229,1708570241787,-608.06,0.00035616,2]
[314823230,1708570241796,-500.0,0.00035616,2]
[314823231,1708570241806,-500.0,0.00035616,2]
[314823232,1708570241815,-500.0,0.00035616,2]
[314823233,1708570241825,-500.0,0.00035616,2]
[314823234,1708570241834,-500.0,0.00035616,2]
[314823235,1708570241843,-500.0,0.00035616,2]
[314823236,1708570241852,-500.0,0.00035616,2]
[314823237,1708570241862,-500.0,0.00035616,2]
[314823238,1708570241872,-500.0,0.00035616,2]
[314823239,1708570241882,-500.0,0.00035616,2]
[314823240,1708570241892,-500.0,0.00035616,2]
[314823241,1708570241902,-500.0,0.00035616,2]
[314823242,1708570241912,-500.0,0.00035616,2]
[314823243,1708570241925,-404.07788944,0.00035616,2]
[314823244,1708570241936,-500.0,0.00035616,2]
[314823245,1708570241947,-500.0,0.00035616,2]
[314823246,1708570241958,-500.0,0.00035616,2]
[314823247,1708570241967,-500.0,0.00035616,2]
[314823248,1708570241978,-506.17871443,0.00035616,2]
[314823249,1708570241989,-500.0,0.00035616,2]
[314823250,1708570241999,-500.0,0.00035616,2]
[314823251,1708570242010,-500.0,0.00035616,2]
[314823252,1708570242021,-500.0,0.00035616,2]
[314823253,1708570242031,-558.33561384,0.00035616,2]
[314823254,1708570242041,-500.0,0.00035616,2]
[314823255,1708570242051,-500.0,0.00035616,2]
[314823256,1708570242061,-500.0,0.00035616,2]
[314823257,1708570242071,-500.0,0.00035616,2]
[314823258,1708570242081,-503.51072215,0.00035616,2]
[314823259,1708570242092,-500.0,0.00035616,2]
[314823260,1708570242102,-500.0,0.00035616,2]
[314823261,1708570242112,-669.87,0.00035616,2]
[314823262,1708570242122,-500.0,0.00035616,2]
[314823263,1708570242131,-500.0,0.00035616,2]
[314823264,1708570242143,-500.0,0.00035616,2]
[314823265,1708570242154,-500.0,0.00035616,2]
[314823266,1708570242164,-500.0,0.00035616,2]
[314823267,1708570242173,-290.83293262,0.00035616,2]
[314823268,1708570242183,-500.0,0.00035616,2]
[314823269,1708570242193,-500.0,0.00035616,2]
[314823270,1708570242206,-846.82,0.00035616,2]
[314823271,1708570242219,-500.0,0.00035616,2]
[314823272,1708570242229,-500.0,0.00035616,2]
[314823273,1708570242239,-500.0,0.00035616,2]
[314823274,1708570242249,-500.0,0.00035616,2]
[314823275,1708570242259,-500.0,0.00035616,2]
[314823276,1708570242269,-500.0,0.00035616,2]
[314823277,1708570242279,-500.0,0.00035616,2]
[314823278,1708570242289,-500.0,0.00035616,2]
[314823279,1708570242300,-500.0,0.00035616,2]
[314823280,1708570242311,-508.91857756,0.00035616,2]
[314823281,1708570242322,-500.0,0.00035616,2]
[314823282,1708570242331,-500.0,0.00035616,2]
[314823283,1708570242341,-500.0,0.00035616,2]
[314823284,1708570242351,-500.0,0.00035616,2]
[314823285,1708570242361,-500.0,0.00035616,2]
[314823286,1708570242370,-500.0,0.00035616,2]
[314823287,1708570242380,-500.0,0.00035616,2]
[314823288,1708570242390,-500.0,0.00035616,2]
[314823289,1708570242400,-500.0,0.00035616,2]
[314823290,1708570242410,-500.0,0.00035616,2]
[314823291,1708570242419,-500.0,0.00035616,2]
[314823292,1708570242429,-500.0,0.00035616,2]
[314823293,1708570242439,-500.0,0.00035616,2]
[314823294,1708570242448,-500.0,0.00035616,2]
[314823295,1708570242458,-500.0,0.00035616,2]
[314823296,1708570242467,-500.0,0.00035616,2]
[314823297,1708570242477,-500.0,0.00035616,2]
[314823298,1708570242490,-500.0,0.00035616,2]
[314823299,1708570242499,-620.52,0.00035616,2]
[314823300,1708570242509,-500.0,0.00035616,2]
[314823301,1708570242519,-500.0,0.00035616,2]
[314823302,1708570242531,-500.0,0.00035616,2]
[314823303,1708570242540,-500.0,0.00035616,2]
[314823304,1708570242550,-500.0,0.00035616,2]
[314823305,1708570242560,-500.0,0.00035616,2]
[314823306,1708570242570,-506.98454176,0.00035616,2]
[314823307,1708570242580,-500.0,0.00035616,2]
[314823308,1708570242589,-500.0,0.00035616,2]
[314823309,1708570242600,-575.88775346,0.00035616,2]
[314823310,1708570242610,-500.0,0.00035616,2]
[314823311,1708570242620,-500.0,0.00035616,2]
[314823312,1708570242630,-500.0,0.00035616,2]
[314823313,1708570242641,-500.0,0.00035616,2]
[314823314,1708570242652,-500.0,0.00035616,2]
[314823315,1708570242662,-197.65439572,0.00035616,2]
[314823316,1708570242673,-664.0,0.00035616,2]
[314823317,1708570242683,-500.0,0.00035616,2]
[314823318,1708570242693,-1046.82,0.00035616,2]
[314823319,1708570242704,-500.0,0.00035616,2]
[314823320,1708570242714,-500.0,0.00035616,2]
[314823321,1708570242724,-500.0,0.00035616,2]
[314823322,1708570242734,-503.24019031,0.00035616,2]
[314823323,1708570242743,-500.0,0.00035616,2]
[314823324,1708570242754,-500.0,0.00035616,2]
[314823325,1708570242764,-500.0,0.00035616,2]
[314823326,1708570242773,-500.0,0.00035616,2]
[314823327,1708570242783,-500.0,0.00035616,2]
[314823328,1708570242793,-500.0,0.00035616,2]
[314823329,1708570242805,-500.0,0.00035616,2]
[314823330,1708570242814,-500.0,0.00035616,2]
[314823331,1708570242824,-500.0,0.00035616,2]
[314823332,1708570242834,-500.0,0.00035616,2]
[314823333,1708570242844,-500.0,0.00035616,2]
[314823334,1708570242854,-500.0,0.00035616,2]
[314823335,1708570242865,-500.0,0.00035616,2]
[314823336,1708570242877,-500.0,0.00035616,2]
[314823337,1708570242888,-500.0,0.00035616,2]
[314823338,1708570242901,-500.0,0.00035616,2]
[314823339,1708570242912,-500.0,0.00035616,2]
[314823340,1708570242922,-500.0,0.00035616,2]
[314823341,1708570242932,-506.55629381,0.00035616,2]
[314823342,1708570242942,-500.0,0.00035616,2]
[314823343,1708570242952,-500.0,0.00035616,2]
[314823344,1708570242962,-500.0,0.00035616,2]
[314823345,1708570242971,-500.0,0.00035616,2]
[314823346,1708570242981,-500.0,0.00035616,2]
[314823347,1708570242991,-500.0,0.00035616,2]
[314823348,1708570243001,-500.0,0.00035616,2]
[314823349,1708570243018,-500.0,0.00035616,2]
[314823350,1708570243031,-500.0,0.00035616,2]
[314823351,1708570243041,-500.0,0.00035616,2]
[314823352,1708570243051,-500.0,0.00035616,2]
[314823353,1708570243061,-500.0,0.00035616,2]
[314823354,1708570243070,-575.07,0.00035616,2]
[314823355,1708570243079,-500.0,0.00035616,2]
[314823356,1708570243089,-500.0,0.00035616,2]
[314823357,1708570243099,-500.0,0.00035616,2]
[314823358,1708570243108,-500.0,0.00035616,2]
[314823359,1708570243118,-500.0,0.00035616,2]
[314823360,1708570243128,-500.0,0.00035616,2]
[314823361,1708570243138,-500.0,0.00035616,2]
[314823362,1708570243151,-500.0,0.00035616,2]
[314823363,1708570243161,-500.0,0.00035616,2]
[314823364,1708570243171,-500.0,0.00035616,2]
[314823365,1708570243180,-500.0,0.00035616,2]
[314823366,1708570243190,-500.0,0.00035616,2]
[314823367,1708570243200,-500.0,0.00035616,2]
[314823368,1708570243210,-500.0,0.00035616,2]
[314823369,1708570243223,-500.0,0.00035616,2]
[314823370,1708570243233,-500.0,0.00035616,2]
[314823371,1708570243243,-500.0,0.00035616,2]
[314823372,1708570243253,-500.0,0.00035616,2]
[314823373,1708570243263,-500.0,0.00035616,2]
[314823374,1708570243273,-177.24792748,0.00035616,2]
[314823375,1708570243283,-500.0,0.00035616,2]
[314823376,1708570243294,-500.0,0.00035616,2]
[314823377,1708570243303,-500.0,0.00035616,2]
[314823378,1708570243313,-500.0,0.00035616,2]
[314823379,1708570243323,-500.0,0.00035616,2]
[314823380,1708570243333,-508.75575623,0.00035616,2]
[314823381,1708570243342,-500.0,0.00035616,2]
[314823382,1708570243352,-500.0,0.00035616,2]
[314823383,1708570243361,-518.3952076,0.00035616,2]
[314823384,1708570243371,-500.0,0.00035616,2]
[314823385,1708570243380,-500.0,0.00035616,2]
[314823386,1708570243390,-500.0,0.00035616,2]
[314823387,1708570243400,-500.0,0.00035616,2]
[314823388,1708570243410,-500.0,0.00035616,2]
[314823389,1708570243420,-2000.0,0.00035616,2]
[314823390,1708570243429,-500.0,0.00035616,2]
[314823391,1708570243439,-500.0,0.00035616,2]
[314823392,1708570243448,-500.0,0.00035616,2]
[314823393,1708570243458,-500.0,0.00035616,2]
[314823394,1708570243467,-500.0,0.00035616,2]
[314823396,1708570243477,-200.0,0.00035616,2]
[314823398,1708570243486,-500.0,0.00035616,2]
[314823399,1708570243495,-204.69908198,0.00035616,2]
[314823401,1708570243505,-500.0,0.00035616,2]
[314823403,1708570243515,-500.0,0.00035616,2]
[314823405,1708570243524,-500.0,0.00035616,2]
[314823406,1708570243533,-500.0,0.00035616,2]
[314823408,1708570243542,-2347.95,0.00035616,2]
[314823410,1708570243552,-500.0,0.00035616,2]
[314823411,1708570243561,-500.0,0.00035616,2]
[314823412,1708570243570,-500.0,0.00035616,2]
[314823413,1708570243580,-500.0,0.00035616,2]
[314823414,1708570243589,-500.0,0.00035616,2]
[314823415,1708570243598,-500.0,0.00035616,2]
[314823416,1708570243607,-500.0,0.00035616,2]
[314823417,1708570243617,-1099.32,0.00035616,2]
[314823418,1708570243628,-500.0,0.00035616,2]
[314823419,1708570243639,-500.0,0.00035616,2]
[314823420,1708570243650,-500.0,0.00035616,2]
[314823421,1708570243660,-500.0,0.00035616,2]
[314823422,1708570243670,-500.0,0.00035616,2]
[314823423,1708570243680,-495.0,0.00035616,2]
[314823424,1708570243689,-500.0,0.00035616,2]
[314823425,1708570243699,-500.0,0.00035616,2]
[314823426,1708570243708,-509.3579522,0.00035616,2]
[314823427,1708570243718,-500.0,0.00035616,2]
[314823428,1708570243727,-500.0,0.00035616,2]
[314823429,1708570243737,-500.0,0.00035616,2]
[314823430,1708570243746,-500.0,0.00035616,2]
[314823431,1708570243755,-500.0,0.00035616,2]
[314823432,1708570243765,-681.91,0.00035616,2]
[314823433,1708570243774,-500.0,0.00035616,2]
[314823434,1708570243783,-500.0,0.00035616,2]
[314823435,1708570243793,-500.0,0.00035616,2]
[314823436,1708570243802,-500.0,0.00035616,2]
[314823437,1708570243812,-500.0,0.00035616,2]
[314823438,1708570243822,-793.87,0.00035616,2]
[314823439,1708570243832,-500.0,0.00035616,2]
[314823440,1708570243841,-500.0,0.00035616,2]
[314823441,1708570243850,-500.0,0.00035616,2]
[314823442,1708570243859,-500.0,0.00035616,2]
[314823443,1708570243869,-500.0,0.00035616,2]
[314823444,1708570243878,-500.0,0.00035616,2]
[314823445,1708570243887,-500.0,0.00035616,2]
[314823446,1708570243897,-534.74815603,0.00035616,2]
[314823447,1708570243906,-500.0,0.00035616,2]
[314823448,1708570243915,-500.0,0.00035616,2]
[314823449,1708570243925,-808.07,0.00035616,2]
[314823450,1708570243933,-883.37,0.00035616,2]
[314823451,1708570243943,-500.0,0.00035616,2]
[314823452,1708570243953,-500.0,0.00035616,2]
[314823453,1708570243962,-500.0,0.00035616,2]
[314823454,1708570243972,-500.0,0.00035616,2]
[314823455,1708570243982,-500.0,0.00035616,2]
[314823456,1708570243991,-524.37,0.00035616,2]
[314823457,1708570244001,-500.0,0.00035616,2]
[314823458,1708570244012,-500.0,0.00035616,2]
[314823459,1708570244021,-500.0,0.00035616,2]
[314823460,1708570244031,-547.62,0.00035616,2]
[314823461,1708570244041,-705.34,0.00035616,2]
[314823462,1708570244051,-624.07,0.00035616,2]
[314823463,1708570244061,-592.68,0.00035616,2]
[314823464,1708570244072,-500.0,0.00035616,2]
[314823465,1708570244081,-500.0,0.00035616,2]
[314823466,1708570244091,-500.0,0.00035616,2]
[314823467,1708570244102,-500.0,0.00035616,2]
[314823468,1708570244112,-500.0,0.00035616,2]
[314823469,1708570244121,-500.0,0.00035616,2]
[314823470,1708570244131,-521.16,0.00035616,2]
[314823471,1708570244140,-600.36,0.00035616,2]
[314823472,1708570244150,-500.0,0.00035616,2]
[314823473,1708570244159,-500.0,0.00035616,2]
[314823474,1708570244168,-542.51,0.00035616,2]
[314823475,1708570244178,-500.0,0.00035616,2]
[314823476,1708570244187,-500.0,0.00035616,2]
[314823477,1708570244196,-1185.8,0.00035616,2]
[314823478,1708570244206,-333.48690546,0.00035616,2]
[314823479,1708570244216,-678.43,0.00035616,2]
[314823480,1708570244228,-500.0,0.00035616,2]
[314823481,1708570244237,-500.0,0.00035616,2]
[314823482,1708570244247,-500.0,0.00035616,2]
[314823483,1708570244256,-500.0,0.00035616,2]
[314823484,1708570244267,-500.0,0.00035616,2]
[314823485,1708570244276,-500.0,0.00035616,2]
[314823486,1708570244285,-500.0,0.00035616,2]
[314823487,1708570244295,-500.0,0.00035616,2]
[314823488,1708570244304,-558.2,0.00035616,2]
[314823489,1708570244314,-500.0,0.00035616,2]
[314823490,1708570244323,-725.14,0.00035616,2]
[314823491,1708570244661,-500.0,0.00035616,2]
[314823492,1708570244670,-1164.22,0.00035616,2]
[314823493,1708570244680,-500.0,0.00035616,2]
[314823494,1708570244689,-500.0,0.00035616,2]
[314823495,1708570244698,-500.0,0.00035616,2]
[314823496,1708570244707,-500.0,0.00035616,2]
[314823497,1708570244716,-500.0,0.00035616,2]
[314823498,1708570244725,-500.0,0.00035616,2]
[314823499,1708570244735,-500.0,0.00035616,2]
[314823500,1708570244744,-500.0,0.00035616,2]
[314823501,1708570244754,-500.0,0.00035616,2]
[314823502,1708570244765,-500.0,0.00035616,2]
[314823503,1708570244775,-750.76,0.00035616,2]
[314823504,1708570244785,-623.63,0.00035616,2]
[314823505,1708570244795,-500.0,0.00035616,2]
[314823506,1708570244805,-500.0,0.00035616,2]
[314823507,1708570244814,-500.0,0.00035616,2]
[314823508,1708570244823,-500.0,0.00035616,2]
[314823509,1708570244833,-500.0,0.00035616,2]
[314823510,1708570244842,-500.0,0.00035616,2]
[314823511,1708570244850,-599.54,0.00035616,2]
[314823512,1708570244860,-500.0,0.00035616,2]
[314823513,1708570244869,-500.0,0.00035616,2]
[314823514,1708570244879,-500.0,0.00035616,2]
[314823515,1708570244888,-500.0,0.00035616,2]
[314823516,1708570244897,-527.80184712,0.00035616,2]
[314823517,1708570244906,-178.16023714,0.00035616,2]
[314823518,1708570244915,-500.0,0.00035616,2]
[314823519,1708570244924,-772.22,0.00035616,2]
[314823520,1708570244934,-500.0,0.00035616,2]
[314823521,1708570244943,-500.0,0.00035616,2]
[314823522,1708570244952,-500.0,0.00035616,2]
[314823523,1708570244961,-500.0,0.00035616,2]
[314823524,1708570244970,-500.0,0.00035616,2]
[314823525,1708570244979,-1014.76,0.00035616,2]
[314823526,1708570244988,-500.0,0.00035616,2]
[314823527,1708570244997,-959.55,0.00035616,2]
[314823528,1708570245007,-500.0,0.00035616,2]
[314823529,1708570245016,-1078.95,0.00035616,2]
[314823530,1708570245025,-500.0,0.00035616,2]
[314823531,1708570245034,-500.0,0.00035616,2]
[314823532,1708570245044,-500.0,0.00035616,2]
[314823533,1708570245054,-509.48149039,0.00035616,2]
[314823534,1708570245064,-500.0,0.00035616,2]
[314823535,1708570245073,-576.84,0.00035616,2]
[314823536,1708570245082,-766.86,0.00035616,2]
[314823537,1708570245091,-538.07097092,0.00035616,2]
[314823538,1708570245100,-23.79765161,0.00035616,2]
[314823539,1708570245403,-513.80234839,0.00035616,2]
[314823540,1708570245412,-500.0,0.00035616,2]
[314823541,1708570245422,-608.17,0.00035616,2]
[314823542,1708570245431,-500.0,0.00035616,2]
[314823543,1708570245442,-500.0,0.00035616,2]
[314823544,1708570245451,-289.05558487,0.00035616,2]
[314823546,1708570246385,-165.52992765,0.00035555,2]
[314823547,1708570246395,-210.94441513,0.00035616,2]
[314823548,1708570246404,-500.0,0.00035616,2]
[314823549,1708570246414,-500.0,0.00035616,2]
[314823550,1708570246423,-500.0,0.00035616,2]
[314823551,1708570246433,-500.0,0.00035616,2]
[314823552,1708570246442,-500.0,0.00035616,2]
[314823553,1708570246451,-500.0,0.00035616,2]
[314823554,1708570246461,-440.06716295,0.00035616,2]
[314823555,1708570246473,-342.45283705,0.00035616,2]
[314823556,1708570246482,-556.55293622,0.00035616,2]
[314823557,1708570246491,-990.17,0.00035616,2]
[314823558,1708570246500,-500.0,0.00035616,2]
[314823559,1708570246512,-500.0,0.00035616,2]
[314823560,1708570246521,-500.0,0.00035616,2]
[314823561,1708570246530,-500.0,0.00035616,2]
[314823562,1708570246539,-500.0,0.00035616,2]
[314823563,1708570246549,-343.3590743,0.00035616,2]
[314823564,1708570246561,-399.5909257,0.00035616,2]
[314823566,1708570246571,-500.0,0.00035616,2]
[314823567,1708570246581,-500.0,0.00035616,2]
[314823568,1708570246590,-500.0,0.00035616,2]
[314823569,1708570246599,-500.0,0.00035616,2]
[314823570,1708570246608,-512.04152171,0.00035616,2]
[314823571,1708570246617,-154.33955224,0.00035616,2]
[314823572,1708570247769,-567.50537167,0.00035615,4]
[314823573,1708570247778,-501.65036144,0.00035615,4]
[314823574,1708570247788,-601.62044776,0.00035616,2]
[314823575,1708570247797,-1425.79,0.00035616,2]
[314823576,1708570247806,-574.35,0.00035616,2]
[314823577,1708570247818,-500.0,0.00035616,2]
[314823578,1708570247829,-500.0,0.00035616,2]
[314823579,1708570247840,-500.0,0.00035616,2]
[314823580,1708570247849,-500.0,0.00035616,2]
[314823581,1708570247859,-500.0,0.00035616,2]
[314823582,1708570247869,-500.0,0.00035616,2]
[314823583,1708570247878,-500.0,0.00035616,2]
[314823584,1708570247887,-500.0,0.00035616,2]
[314823585,1708570247898,-500.0,0.00035616,2]
[314823586,1708570247909,-500.0,0.00035616,2]
[314823587,1708570247918,-500.0,0.00035616,2]
[314823588,1708570247928,-896.23,0.00035616,2]
[314823589,1708570247937,-10000.0,0.00035616,2]
[314823590,1708570247947,-574.800895,0.00035616,2]
[314823591,1708570247957,-500.0,0.00035616,2]
[314823592,1708570247966,-500.0,0.00035616,2]
[314823593,1708570247976,-533.09,0.00035616,2]
[314823594,1708570247985,-666.75,0.00035616,2]
[314823595,1708570247994,-500.0,0.00035616,2]
[314823596,1708570248003,-716.21,0.00035616,2]
[314823597,1708570248013,-507.77,0.00035616,2]
[314823598,1708570248022,-500.0,0.00035616,2]
[314823599,1708570248032,-500.0,0.00035616,2]
[314823600,1708570248041,-500.0,0.00035616,2]
[314823601,1708570248051,-500.0,0.00035616,2]
[314823602,1708570248060,-500.0,0.00035616,2]
[314823603,1708570248069,-623.15,0.00035616,2]
[314823604,1708570248079,-500.0,0.00035616,2]
[314823605,1708570248089,-500.0,0.00035616,2]
[314823606,1708570248098,-500.0,0.00035616,2]
[314823607,1708570248107,-660.16,0.00035616,2]
[314823608,1708570248117,-500.0,0.00035616,2]
[314823609,1708570248126,-516.33393644,0.00035616,2]
[314823610,1708570248135,-973.4,0.00035616,2]
[314823611,1708570248145,-500.0,0.00035616,2]
[314823612,1708570248155,-567.23337717,0.00035616,2]
[314823613,1708570248165,-500.0,0.00035616,2]
[314823614,1708570248174,-907.43,0.00035616,2]
[314823615,1708570248184,-500.0,0.00035616,2]
[314823616,1708570248193,-250.0,0.00035616,2]
[314823617,1708570248202,-413.17687478,0.00035616,2]
[314823623,1708570696285,-168.99364597,0.000229,2]
[314823624,1708570696305,-494.02331433,0.00022998,2]
[314823625,1708570696324,-217.5987351,0.00022998,2]
[314823626,1708570696345,-150.0,0.00022998,2]
[314823627,1708570696365,-54716.96950415,0.00022999,2]
[314823628,1708570696389,-241.317723,0.00023,3]
[314823629,1708570696409,-153035.09707745,0.00023,2]
[314823648,1708571440338,-150.0,0.00022541,2]
[314823649,1708571440347,-367.16610711,0.00022541,2]
[314823650,1708571440446,-1029.336,0.00022541,2]
[314823651,1708571440458,-2082.70408967,0.00022541,2]
[314823652,1708571440647,-51237.76330737,0.00022541,2]
[314823653,1708571440657,-43316.0,0.00022542,2]
[314823654,1708571440667,-165.86806144,0.00022669,2]
[314823655,1708571440678,-614.7258666,0.000229,2]
[314823656,1708571440687,-160.20998841,0.0002299,2]
[314823657,1708571440698,-1000.0,0.00022999,2]
[314823658,1708571440707,-179.1806126,0.00023,3]
[314823659,1708571440716,-608186.2898181,0.00023,2]
[314823660,1708571440728,-310.24010705,0.00023,2]
[314823661,1708571440753,-709.08266212,0.00023,2]
[314823662,1708571440765,-497322.69695073,0.00023,2]
[314823663,1708571440775,-218.41231091,0.00023,2]
[314823665,1708571440785,-65910.80313265,0.00023,2]
[314823667,1708571440794,-1185.29,0.00023544,2]
[314823669,1708571440803,-7202.99,0.00023544,2]
[314823671,1708571440812,-197.52048662,0.0002375,2]
[314823673,1708571440822,-179.21,0.0002375,2]
[314823675,1708571440832,-499.99,0.0002375,2]
[314823676,1708571440841,-150.99,0.0002375,2]
[314823677,1708571440851,-1237.12598138,0.0002385,2]
[314823678,1708571440860,-210.0,0.00024795,2]
[314823679,1708571440870,-1105.39,0.00024852,2]
[314823680,1708571440880,-1187.66945507,0.000249,2]
[314823681,1708571440889,-200.0,0.00024965,2]
[314823682,1708571440898,-15598.92,0.00024997,2]
[314823683,1708571440909,-373.37119759,0.00025,2]
[314823684,1708571440919,-851.76267926,0.00025,2]
[314823685,1708571440929,-750.0,0.00025,3]
[314823686,1708571440938,-5201.57,0.00025,2]
[314823687,1708571440948,-165.86806142,0.00025079,2]
[314823688,1708571440958,-250.0,0.00025087,2]
[314823689,1708571440968,-2000.0,0.00025295,2]
[314823690,1708571440978,-150.0,0.00025295,2]
[314823691,1708571440987,-10248.3,0.00025349,2]
[314823692,1708571440996,-9497.44,0.00025517,2]
[314823693,1708571441006,-174.79,0.00025586,2]
[314823694,1708571441015,-1185.29,0.00025808,2]
[314823695,1708571441025,-87872.13,0.00025829,2]
[314823696,1708571441035,-23900.0,0.00025829,2]
[314823697,1708571441044,-617.82,0.00025922,2]
[314823698,1708571441054,-1187.669455,0.00025977,2]
[314823699,1708571441064,-617.82,0.00025993,2]
[314823700,1708571441073,-617.82,0.00026065,2]
[314823701,1708571441083,-1105.39,0.00026094,2]
[314823702,1708571441093,-150.0,0.00026095,2]
[314823703,1708571441102,-617.82,0.00026136,2]
[314823704,1708571441111,-617.82,0.00026207,2]
[314823705,1708571441121,-617.82,0.00026278,2]
[314823706,1708571441130,-617.82,0.00026349,2]
[314823707,1708571441139,-617.82,0.0002642,2]
[314823708,1708571441148,-617.82,0.00026491,2]
[314823709,1708571441157,-617.82,0.00026562,2]
[314823710,1708571441167,-617.82,0.00026633,2]
[314823711,1708571441176,-617.82,0.00026704,2]
[314823712,1708571441186,-617.82,0.00026776,2]
[314823713,1708571441195,-4026.92,0.000268,2]
[314823714,1708571441204,-2424.09,0.00026805,2]
[314823715,1708571441214,-750.0,0.00026842,2]
[314823716,1708571441224,-500.0,0.00026842,2]
[314823717,1708571441234,-617.82,0.00026847,2]
[314823718,1708571441243,-200.0,0.00026885,2]
[314823719,1708571441252,-617.82,0.00026918,2]
[314823720,1708571441262,-2424.09,0.00026946,2]
[314823721,1708571441271,-617.82,0.00026989,2]
[314823722,1708571441281,-800.0,0.00027,3]
[314823723,1708571441290,-29784.62,0.00027,2]
[314823724,1708571441299,-1124.83,0.00027,2]
[314823725,1708571441308,-300.0,0.00027008,2]
[314823726,1708571441318,-1187.669455,0.00027054,2]
[314823727,1708571441328,-617.82,0.0002706,2]
[314823728,1708571441338,-2424.09,0.00027087,2]
[314823729,1708571441347,-167.3,0.00027105,2]
[314823730,1708571441357,-476.52,0.00027123,2]
[314823731,1708571441366,-617.82,0.00027131,2]
[314823732,1708571441375,-617.82,0.00027202,2]
[314823733,1708571441385,-2424.09,0.00027228,2]
[314823734,1708571441395,-617.82,0.00027273,2]
[314823735,1708571441404,-1105.39,0.00027337,2]
[314823736,1708571441413,-2424.09,0.00027369,2]
[314823737,1708571441423,-155.0,0.00027397,2]
[314823738,1708571441432,-25193.12,0.00027397,2]
[314823739,1708571441442,-66962.69,0.00027397,2]
[314823740,1708571441452,-165.86806142,0.0002749,2]
[314823741,1708571441463,-39579.72,0.00027509,2]
[314823742,1708571441473,-2424.09,0.0002751,2]
[314823743,1708571441482,-416.0,0.00027536,2]
[314823744,1708571441493,-25193.12,0.00027556,2]
[314823745,1708571441502,-159.21,0.00027563,2]
[314823746,1708571441511,-500.0,0.00027616,2]
[314823747,1708571441522,-925.68,0.00027633,2]
[314823748,1708571441531,-2424.09,0.00027651,2]
[314823749,1708571441540,-250.0,0.00027663,2]
[314823750,1708571441549,-2375.1,0.00027693,2]
[314823751,1708571441558,-3049.68,0.00027704,2]
[314823752,1708571441568,-25193.12,0.00027714,2]
[314823753,1708571441577,-500.0,0.00027738,2]
[314823754,1708571441587,-2424.09,0.00027792,2]
[314823755,1708571441598,-375.8,0.000278,2]
[314823756,1708571441608,-25193.12,0.00027872,2]
[314823757,1708571441617,-2424.09,0.00027933,2]
[314823758,1708571441627,-25193.12,0.0002803,2]
[314823759,1708571441638,-187.44,0.00028045,2]
[314823760,1708571441647,-1185.29,0.00028072,2]
[314823761,1708571441656,-2424.09,0.00028074,2]
[314823762,1708571441665,-1187.669455,0.00028132,2]